bitfinex-derivatives/quotes_BTCF0:USTF0_20241226
["timestamp","ask_amount","ask_price","bid_price","bid_amount"]
[1735203273804,0.10370137,96317.0,96296.0,0.00155749]
[1735203274012,0.10370137,96306.0,96305.0,0.04157]
[1735203274305,0.041567,96311.0,96308.0,0.041568]
[1735203275508,0.043567,96311.0,96308.0,0.041568]
[1735203275701,0.043567,96311.0,96296.0,0.00155749]
[1735203275901,0.10370137,96306.0,96305.0,0.041569]
[1735203276104,0.044567,96311.0,96308.0,0.001]
[1735203277213,0.002,96311.0,96309.0,0.041567]
[1735203277811,0.001,96311.0,96309.0,0.041567]
[1735203278117,0.003,96311.0,96309.0,0.041567]
[1735203278313,0.002,96311.0,96309.0,0.041567]
[1735203278612,0.00672304,96310.0,96309.0,0.041567]
[1735203279315,0.002,96311.0,96309.0,0.041567]
[1735203279612,0.00672651,96310.0,96309.0,0.042567]
[1735203280117,0.00772651,96310.0,96309.0,0.042567]
[1735203280717,0.00972651,96310.0,96309.0,0.042567]
[1735203282117,0.00872651,96310.0,96309.0,0.042567]
[1735203282816,0.00972651,96310.0,96309.0,0.042567]
[1735203283322,0.00972368,96310.0,96309.0,0.042567]
[1735203284614,0.00972368,96310.0,96309.0,0.001]
[1735203284816,0.05129068,96310.0,96309.0,0.001]
[1735203285010,0.041571,96301.0,96293.0,0.041574]
[1735203285211,0.10370137,96298.0,96293.0,0.041574]
[1735203285411,0.00672368,96297.0,96293.0,0.041574]
[1735203285807,0.10370137,96298.0,96293.0,0.041574]
[1735203286017,0.2506,96296.0,96293.0,0.041574]
[1735203286412,0.00673059,96295.0,96293.0,0.041574]
[1735203286613,0.00673059,96294.0,96293.0,0.041574]
[1735203286810,0.00673113,96294.0,96293.0,0.041574]
[1735203287114,0.00673113,96295.0,96293.0,0.041574]
[1735203287315,0.00673113,96295.0,96274.0,0.24886006]
[1735203287520,0.00673113,96295.0,96274.0,0.01174123]
[1735203287521,0.10370137,96290.0,96274.0,0.01174123]
[1735203287720,0.10370137,96290.0,96273.0,0.00155786]
[1735203288220,0.00673285,96289.0,96273.0,0.00155786]
[1735203288522,0.10370137,96290.0,96287.0,0.041577]
[1735203288722,0.1531545,96293.0,96288.0,0.041577]
[1735203289017,0.18414947,96298.0,96290.0,0.041576]
[1735203289318,0.18414947,96298.0,96297.0,0.041573]
[1735203289919,0.1228262,96302.0,96291.0,0.37722]
[1735203290109,0.1228262,96302.0,96301.0,0.041571]
[1735203291118,0.002,96302.0,96301.0,0.041571]
[1735203292316,0.005,96302.0,96301.0,0.041571]
[1735203301313,0.1228262,96318.0,96317.0,0.041564]
[1735203302528,0.1228262,96320.0,96319.0,0.041563]
[1735203303428,0.12960013,96320.0,96319.0,0.041563]
[1735203303815,0.00677393,96320.0,96319.0,0.041563]
[1735203304021,0.13433668,96325.0,96317.0,0.001]
[1735203304223,0.00677751,96324.0,96319.0,0.001]
[1735203304423,0.00677751,96323.0,96319.0,0.001]
[1735203304733,0.00678055,96322.0,96320.0,0.041563]
[1735203304920,0.00678055,96321.0,96320.0,0.041563]
[1735203305121,0.00678055,96324.0,96320.0,0.041563]
[1735203305326,0.10370137,96320.0,96319.0,0.001]
[1735203305622,0.00678055,96320.0,96302.0,0.29043106]
[1735203305923,0.14526837,96312.0,96305.0,0.041569]
[1735203306125,0.25268504,96311.0,96305.0,0.041569]
[1735203306326,0.00678504,96310.0,96305.0,0.041569]
[1735203306525,0.00678504,96310.0,96302.0,0.24886006]
[1735203306728,0.04157,96304.0,96302.0,0.24886006]
[1735203307033,0.041571,96302.0,96294.0,0.31107508]
[1735203307235,0.041574,96295.0,96286.0,0.00052]
[1735203307531,0.04836004,96294.0,96288.0,0.041577]
[1735203307729,0.00678504,96293.0,96288.0,0.041577]
[1735203307928,0.00678504,96292.0,96282.0,0.00155775]
[1735203308131,0.10370137,96296.0,96282.0,0.00155775]
[1735203308132,0.00678504,96291.0,96282.0,0.00155775]
[1735203308322,0.041578,96286.0,96282.0,0.00155775]
[1735203308520,0.00678504,96285.0,96282.0,0.00155775]
[1735203308921,0.00678504,96285.0,96261.0,0.1217]
[1735203309137,0.20740274,96271.0,96253.0,0.3738101]
[1735203309326,0.041588,96263.0,96253.0,0.4154021]
[1735203309635,0.041589,96260.0,96253.0,0.3738101]
[1735203309832,0.04836304,96260.0,96253.0,0.3738101]
[1735203310419,0.00677404,96260.0,96253.0,0.00052]
[1735203310624,0.00677404,96259.0,96240.0,0.041597]
[1735203310824,0.20740274,96250.0,96238.0,0.01149286]
[1735203311025,0.041597,96241.0,96238.0,0.01149286]
[1735203311528,0.041597,96241.0,96237.0,0.00155859]
[1735203311529,0.041598,96239.0,96237.0,0.00155859]
[1735203311725,0.041598,96239.0,96225.0,0.31107508]
[1735203311726,0.00676593,96238.0,96225.0,0.31107508]
[1735203312038,0.14530137,96235.0,96225.0,0.31107508]
[1735203312335,0.14530137,96235.0,96220.0,0.041606]
[1735203312336,0.041601,96234.0,96220.0,0.041606]
[1735203312535,0.041601,96232.0,96220.0,0.041606]
[1735203312721,0.10370137,96235.0,96204.0,0.00155913]
[1735203312927,0.10370137,96214.0,96204.0,0.00155913]
[1735203313136,0.04161,96211.0,96204.0,0.00155913]
[1735203313537,0.041611,96209.0,96204.0,0.00155913]
[1735203313937,0.041611,96209.0,96204.0,0.00755913]
[1735203314128,0.1177,96234.0,96204.0,0.01055913]
[1735203314329,0.1177,96234.0,96210.0,0.10370137]
[1735203314633,0.1177,96234.0,96223.0,0.041605]
[1735203314842,0.041605,96223.0,96213.0,0.041609]
[1735203315031,0.10370137,96223.0,96204.0,0.04517213]
[1735203315231,0.10370137,96214.0,96204.0,0.04517213]
[1735203315433,0.14531037,96214.0,96204.0,0.04517213]
[1735203315637,0.14531037,96214.0,96204.0,0.00355913]
[1735203315638,0.04161,96212.0,96204.0,0.00355913]
[1735203316034,0.20740274,96214.0,96204.0,0.00355913]
[1735203316341,0.20740274,96214.0,96160.0,0.1688527]
[1735203316342,0.041617,96197.0,96168.0,0.041628]
[1735203316538,0.1282,96211.0,96164.0,0.32243622]
[1735203316539,0.10370137,96190.0,96164.0,0.32243622]
[1735203316741,0.10370137,96174.0,96173.0,0.041627]
[1735203316937,0.10370137,96180.0,96173.0,0.041627]
[1735203317531,0.041621,96185.0,96173.0,0.041627]
[1735203317731,0.10370137,96190.0,96160.0,0.10370137]
[1735203317927,0.10370137,96180.0,96175.0,0.041626]
[1735203319452,0.041621,96186.0,96175.0,0.041626]
[1735203319635,0.10370137,96190.0,96174.0,0.041626]
[1735203319942,0.10370137,96190.0,96182.0,0.041623]
[1735203321245,0.1183244,96190.0,96182.0,0.041623]
[1735203321746,0.1193244,96190.0,96182.0,0.041623]
[1735203322449,0.1193244,96190.0,96124.0,0.0156]
[1735203322645,0.1193244,96190.0,96102.0,0.31107508]
[1735203322646,0.10370137,96160.0,96139.0,0.2564]
[1735203322953,0.10370137,96154.0,96147.0,0.041638]
[1735203323140,0.10370137,96154.0,96139.0,0.128]
[1735203323445,0.10370137,96154.0,96130.0,0.10370137]
[1735203323642,0.041634,96157.0,96148.0,0.041637]
[1735203324846,0.01128051,96158.0,96144.0,0.01555963]
[1735203325037,0.14533337,96160.0,96150.0,0.041636]
[1735203325450,0.041633,96159.0,96150.0,0.041636]
[1735203327051,0.041633,96159.0,96150.0,0.048636]
[1735203327244,0.041636,96152.0,96150.0,0.007]
[1735203327448,0.041633,96159.0,96128.0,0.041646]
[1735203327639,0.10370137,96138.0,96128.0,0.041646]
[1735203327835,0.10370137,96138.0,96137.0,0.041642]
[1735203328141,0.11498878,96160.0,96150.0,0.041636]
[1735203328344,0.041634,96157.0,96150.0,0.045636]
[1735203328543,0.041636,96152.0,96150.0,0.004]
[1735203328743,0.14533337,96160.0,96150.0,0.004]
[1735203328947,0.041633,96159.0,96150.0,0.004]
[1735203329251,0.041634,96157.0,96150.0,0.004]
[1735203329845,0.005,96152.0,96150.0,0.004]
[1735203330046,0.005,96152.0,96148.0,0.041637]
[1735203330345,0.046634,96157.0,96148.0,0.041637]
[1735203330544,0.041634,96156.0,96148.0,0.041637]
[1735203331050,0.007,96157.0,96148.0,0.041637]
[1735203331247,0.041636,96152.0,96141.0,0.04164]
[1735203331452,0.10370137,96151.0,96150.0,0.001]
[1735203331642,0.041636,96152.0,96150.0,0.001]
[1735203332552,0.008,96157.0,96129.0,0.041646]
[1735203332750,0.10370137,96139.0,96129.0,0.041646]
[1735203332944,0.041642,96137.0,96129.0,0.041646]
[1735203333657,0.10370137,96139.0,96129.0,0.041646]
[1735203333842,0.041643,96135.0,96129.0,0.041646]
[1735203335954,0.001,96137.0,96121.0,0.1181]
[1735203336255,0.01104462,96155.0,96146.0,0.041638]
[1735203336451,0.20740274,96156.0,96121.0,0.1181]
[1735203336646,0.10370137,96131.0,96128.0,0.041646]
[1735203336850,0.041643,96136.0,96128.0,0.041646]
[1735203337457,0.001,96137.0,96128.0,0.041646]
[1735203337757,0.041644,96134.0,96128.0,0.042646]
[1735203338655,0.10370137,96150.0,96128.0,0.042646]
[1735203338656,0.00064,96174.0,96128.0,0.302]
[1735203338865,0.04163,96165.0,96150.0,0.10370137]
[1735203339162,0.04163,96165.0,96128.0,0.302]
[1735203339163,0.04163,96165.0,96158.0,0.041633]
[1735203340057,0.01300772,96179.0,96173.0,0.041626]
[1735203340261,0.00683488,96178.0,96173.0,0.041626]
[1735203340459,0.05463172,96179.0,96173.0,0.041626]
[1735203341156,0.00684367,96178.0,96173.0,0.041626]
[1735203341353,0.06063172,96179.0,96173.0,0.041626]
[1735203341747,0.01900772,96179.0,96173.0,0.041626]
[1735203342147,0.0068429,96178.0,96158.0,0.001]
[1735203342459,0.10370137,96170.0,96145.0,0.041639]
[1735203342762,0.041634,96156.0,96145.0,0.041639]
[1735203342968,0.00684183,96155.0,96145.0,0.041639]
[1735203343156,0.00684183,96154.0,96145.0,0.041639]
[1735203343462,0.00684183,96153.0,96148.0,0.041637]
[1735203343763,0.04164,96142.0,96132.0,0.041644]
[1735203343963,0.041641,96140.0,96133.0,0.041644]
[1735203344257,0.00684013,96139.0,96133.0,0.041644]
[1735203345366,0.00684013,96139.0,96109.0,0.1292]
[1735203345552,0.13534013,96139.0,96118.0,0.04165]
[1735203345863,0.10370137,96128.0,96112.0,0.1187]
[1735203346050,0.10370137,96122.0,96121.0,0.041649]
[1735203346362,0.00684013,96122.0,96121.0,0.041649]
[1735203348354,0.00685005,96122.0,96113.0,0.18646135]
[1735203348559,0.20740274,96123.0,96121.0,0.003]
[1735203348757,0.00685004,96122.0,96121.0,0.003]
[1735203349657,0.04849904,96122.0,96121.0,0.001]
[1735203350356,0.041651,96118.0,96108.0,0.04321567]
[1735203350664,0.041651,96118.0,96109.0,0.041654]
[1735203350665,0.00685004,96117.0,96109.0,0.041654]
[1735203351051,0.00685004,96117.0,96108.0,0.00156067]
[1735203351252,0.00685004,96117.0,96110.0,0.041653]
[1735203351453,0.00685523,96116.0,96110.0,0.041653]
[1735203351656,0.00685523,96115.0,96110.0,0.041653]
[1735203351851,0.00685523,96114.0,96110.0,0.041653]
[1735203352064,0.15688782,96118.0,96110.0,0.041653]
[1735203352256,0.0068568,96117.0,96110.0,0.041653]
[1735203352457,0.0068568,96116.0,96110.0,0.042653]
[1735203352659,0.15688782,96118.0,96110.0,0.042653]
[1735203352660,0.0068568,96115.0,96110.0,0.042653]
[1735203352959,0.0068568,96114.0,96110.0,0.042653]
[1735203353152,0.0068568,96113.0,96110.0,0.043653]
[1735203353356,0.0068568,96112.0,96110.0,0.043653]
[1735203353556,0.0068568,96111.0,96110.0,0.042653]
[1735203353761,0.0068568,96111.0,96110.0,0.043653]
[1735203354458,0.006852,96111.0,96110.0,0.043653]
[1735203355163,0.006852,96111.0,96110.0,0.042653]
[1735203355467,0.006852,96111.0,96110.0,0.043653]
[1735203356362,0.006852,96111.0,96110.0,0.042653]
[1735203356567,0.006852,96111.0,96110.0,0.043653]
[1735203357453,0.00684366,96111.0,96110.0,0.043654]
[1735203357660,0.00684362,96111.0,96110.0,0.043654]
[1735203358862,0.00684362,96111.0,96099.0,0.18646135]
[1735203359169,0.041657,96103.0,96099.0,0.18646135]
[1735203359468,0.00684362,96102.0,96099.0,0.18646135]
[1735203359664,0.00684362,96102.0,96098.0,0.041659]
[1735203360165,0.041659,96099.0,96095.0,0.18646135]
[1735203360369,0.04166,96097.0,96095.0,0.18646135]
[1735203360874,0.04166,96097.0,96095.0,0.04166]
[1735203361167,0.01118524,96103.0,96084.0,0.18646135]
[1735203361369,0.10370137,96094.0,96084.0,0.18646135]
[1735203361572,0.10370137,96094.0,96093.0,0.041661]
[1735203361770,0.14535837,96103.0,96096.0,0.04166]
[1735203361968,0.14535837,96103.0,96085.0,0.041664]
[1735203362174,0.10370137,96095.0,96094.0,0.041661]
[1735203362362,0.041658,96102.0,96095.0,0.04166]
[1735203362564,0.041658,96102.0,96099.0,0.041659]
[1735203363669,0.041658,96101.0,96099.0,0.041659]
[1735203363877,0.041664,96086.0,96085.0,0.004]
[1735203364067,0.041667,96080.0,96079.0,0.00156108]
[1735203365262,0.041667,96080.0,96055.0,0.18646135]
[1735203365263,0.041672,96069.0,96059.0,0.041676]
[1735203365462,0.041671,96070.0,96055.0,0.18646135]
[1735203365972,0.10370137,96065.0,96062.0,0.041675]
[1735203366178,0.041676,96061.0,96055.0,0.18646135]
[1735203366471,0.10370137,96065.0,96055.0,0.18646135]
[1735203366769,0.041677,96056.0,96055.0,0.18646135]
[1735203366973,0.041677,96056.0,96044.0,0.041682]
[1735203367173,0.10370137,96054.0,96046.0,0.041681]
[1735203367371,0.041679,96052.0,96046.0,0.041681]
[1735203368171,0.1052,96059.0,96035.0,0.18802289]
[1735203368368,0.10370137,96045.0,96035.0,0.18802289]
[1735203368568,0.10370137,96045.0,96035.0,0.00156154]
[1735203368878,0.041685,96038.0,96035.0,0.00156154]
[1735203369378,0.041685,96038.0,96035.0,0.00256154]
[1735203370169,0.043685,96038.0,96035.0,0.00256154]
[1735203370369,0.002,96038.0,96021.0,0.041692]
[1735203370580,0.10370137,96031.0,96021.0,0.041692]
[1735203370870,0.041689,96030.0,96021.0,0.041692]
[1735203371268,0.04169,96027.0,96014.0,0.041695]
[1735203371467,0.10370137,96024.0,96014.0,0.041695]
[1735203371769,0.041692,96023.0,96014.0,0.041695]
[1735203372669,0.041692,96023.0,96021.0,0.004]
[1735203372866,0.10370137,96040.0,96021.0,0.004]
[1735203373071,0.10370137,96050.0,96039.0,0.041684]
[1735203373469,0.10370137,96050.0,96022.0,0.1013]
[1735203373470,0.041681,96047.0,96030.0,0.041688]
[1735203373666,0.10370137,96040.0,96022.0,0.1013]
[1735203373874,0.10370137,96040.0,96023.0,0.041691]
[1735203374076,0.10370137,96040.0,96022.0,0.1013]
[1735203374077,0.10370137,96040.0,96033.0,0.041687]
[1735203374575,0.10370137,96040.0,96039.0,0.003]
[1735203374776,0.041684,96041.0,96039.0,0.003]
[1735203375073,0.002,96040.0,96028.0,0.041689]
[1735203375284,0.002,96040.0,96039.0,0.002]
[1735203375778,0.002,96040.0,96039.0,0.043685]
[1735203375977,0.002,96040.0,96039.0,0.041685]
[1735203376476,0.002,96041.0,96039.0,0.041685]
[1735203376662,0.004,96040.0,96039.0,0.041685]
[1735203377973,0.004,96040.0,96029.0,0.041689]
[1735203378179,0.10770137,96040.0,96022.0,0.1013]
[1735203378364,0.10770137,96040.0,96033.0,0.041687]
[1735203379575,0.10570137,96040.0,96033.0,0.041687]
[1735203379978,0.041685,96039.0,96022.0,0.11237859]
[1735203380178,0.10370137,96032.0,96022.0,0.1013]
[1735203380381,0.041689,96030.0,96022.0,0.1013]
[1735203380682,0.001,96040.0,96028.0,0.041689]
[1735203380683,0.10570137,96040.0,96028.0,0.041689]
[1735203381070,0.14738537,96040.0,96028.0,0.041689]
[1735203381275,0.041687,96034.0,96028.0,0.041689]
[1735203381476,0.041689,96029.0,96022.0,0.003]
[1735203381987,0.041691,96024.0,96022.0,0.003]
[1735203382683,0.041692,96022.0,96012.0,0.041696]
[1735203382876,0.14539337,96022.0,96012.0,0.041696]
[1735203383278,0.10370137,96022.0,96012.0,0.041696]
[1735203383474,0.041693,96020.0,96012.0,0.041696]
[1735203383676,0.10370137,96022.0,96003.0,0.0417]
[1735203383677,0.041696,96013.0,96003.0,0.0417]
[1735203383879,0.10370137,96013.0,96003.0,0.0417]
[1735203384484,0.14539737,96013.0,96012.0,0.001]
[1735203384784,0.041696,96013.0,96012.0,0.001]
[1735203385989,0.041696,96013.0,96003.0,0.0487]
[1735203386286,0.14539737,96013.0,96004.0,0.0417]
[1735203386592,0.14539737,96013.0,96012.0,0.001]
[1735203386979,0.041687,96035.0,96023.0,0.041692]
[1735203387179,0.10370137,96033.0,96023.0,0.041692]
[1735203387389,0.10370137,96040.0,96010.0,0.10370137]
[1735203387690,0.041683,96042.0,96032.0,0.041687]
[1735203387986,0.09111298,96045.0,96039.0,0.041684]
[1735203388381,0.041681,96048.0,96039.0,0.041684]
[1735203388582,0.10370137,96050.0,96039.0,0.041684]
[1735203388583,0.041682,96046.0,96039.0,0.041684]
[1735203389295,0.005,96045.0,96039.0,0.041684]
[1735203389987,0.041683,96044.0,96030.0,0.041688]
[1735203390179,0.041684,96040.0,96039.0,0.001]
[1735203390780,0.041684,96040.0,96031.0,0.041688]
[1735203390980,0.041685,96038.0,96031.0,0.041688]
[1735203391183,0.10370137,96041.0,96022.0,0.041692]
[1735203391383,0.10370137,96032.0,96022.0,0.041692]
[1735203391684,0.041688,96031.0,96022.0,0.041692]
[1735203392479,0.041688,96031.0,96021.0,0.22570691]
[1735203392878,0.041688,96031.0,96022.0,0.001]
[1735203393100,0.01096343,96036.0,96022.0,0.001]
[1735203393295,0.00679549,96035.0,96026.0,0.10370137]
[1735203393495,0.041685,96039.0,96033.0,0.041687]
[1735203393796,0.00679428,96038.0,96034.0,0.114]
[1735203394093,0.00679486,96037.0,96034.0,0.114]
[1735203394292,0.00679486,96036.0,96034.0,0.114]
[1735203394593,0.00679486,96035.0,96034.0,0.114]
[1735203394794,0.041685,96039.0,96034.0,0.114]
[1735203395090,0.041685,96039.0,96033.0,0.041687]
[1735203395091,0.00679627,96038.0,96033.0,0.041687]
[1735203395292,0.00679627,96037.0,96025.0,0.041691]
[1735203395486,0.002,96036.0,96025.0,0.041691]
[1735203395687,0.00679627,96035.0,96025.0,0.041691]
[1735203395887,0.00679627,96034.0,96025.0,0.041691]
[1735203396087,0.00679627,96033.0,96025.0,0.041691]
[1735203396283,0.00679627,96032.0,96025.0,0.041691]
[1735203396479,0.041687,96035.0,96025.0,0.041691]
[1735203396480,0.00679627,96031.0,96025.0,0.041691]
[1735203396687,0.00679627,96030.0,96025.0,0.041691]
[1735203396887,0.00679627,96029.0,96023.0,0.1054]
[1735203397088,0.09111298,96040.0,96039.0,0.041685]
[1735203397287,0.18414947,96062.0,96039.0,0.041685]
[1735203397482,0.041672,96069.0,96057.0,0.041677]
[1735203397483,0.18414947,96058.0,96057.0,0.041677]
[1735203397683,0.19095386,96058.0,96057.0,0.041677]
[1735203397882,0.18414947,96058.0,96057.0,0.041677]
[1735203399289,0.10370137,96070.0,96057.0,0.22813835]
[1735203399290,0.041673,96066.0,96057.0,0.22813835]
[1735203399489,0.041674,96063.0,96057.0,0.22813835]
[1735203399787,0.041675,96061.0,96057.0,0.23213835]
[1735203399982,0.00679392,96058.0,96057.0,0.23213835]
[1735203400187,0.041675,96061.0,96057.0,0.23413835]
[1735203400608,0.041675,96061.0,96057.0,0.23213835]
[1735203400809,0.00356226,96059.0,96057.0,0.045677]
[1735203402220,0.00156226,96059.0,96057.0,0.041677]
[1735203402421,0.00456226,96059.0,96057.0,0.041677]
[1735203403016,0.00156226,96059.0,96057.0,0.043677]
[1735203403209,0.00156226,96059.0,96057.0,0.044677]
[1735203403914,0.00156226,96059.0,96057.0,0.042677]
[1735203404117,0.00256226,96059.0,96057.0,0.050677]
[1735203404824,0.00256226,96059.0,96057.0,0.049677]
[1735203405012,0.00256226,96059.0,96057.0,0.053677]
[1735203405707,0.00256226,96059.0,96057.0,0.052677]
[1735203406215,0.00256226,96059.0,96057.0,0.051677]
[1735203406414,0.00256226,96059.0,96057.0,0.01]
[1735203406603,0.04323826,96059.0,96057.0,0.003]
[1735203406804,0.041679,96053.0,96048.0,0.18646135]
[1735203407014,0.041679,96053.0,96048.0,0.22814235]
[1735203407524,0.041679,96053.0,96048.0,0.041681]
[1735203407710,0.041679,96052.0,96041.0,0.041684]
[1735203407911,0.041679,96052.0,96043.0,0.041683]
[1735203408217,0.041679,96052.0,96030.0,0.29016272]
[1735203408218,0.041679,96052.0,96046.0,0.041681]
[1735203408415,0.2076,96058.0,96049.0,0.04168]
[1735203409414,0.001,96053.0,96049.0,0.04168]
[1735203409911,0.21853871,96058.0,96050.0,0.04168]
[1735203410119,0.21953871,96058.0,96050.0,0.04168]
[1735203410420,0.21953871,96058.0,96052.0,0.041679]
[1735203411214,0.001,96053.0,96052.0,0.041679]
[1735203412511,0.00156226,96059.0,96057.0,0.041677]
[1735203413606,0.00156226,96059.0,96057.0,0.043677]
[1735203414213,0.00156226,96059.0,96057.0,0.002]
[1735203414517,0.04323826,96059.0,96057.0,0.002]
[1735203415113,0.04323826,96059.0,96057.0,0.003]
[1735203415512,0.04323826,96059.0,96057.0,0.001]
[1735203415812,0.04323826,96059.0,96054.0,0.041678]
[1735203416121,0.04623826,96059.0,96054.0,0.041678]
[1735203416311,0.05423826,96059.0,96057.0,0.001]
[1735203417113,0.05716667,96059.0,96054.0,0.041678]
[1735203417316,0.06316667,96059.0,96054.0,0.042678]
[1735203417719,0.02149067,96059.0,96057.0,0.041677]
[1735203418321,0.01056226,96059.0,96057.0,0.041677]
[1735203418820,0.00956226,96059.0,96057.0,0.042677]
[1735203419009,0.01256226,96059.0,96057.0,0.042677]
[1735203419826,0.00856226,96059.0,96057.0,0.042677]
[1735203420523,0.01979576,96059.0,96057.0,0.042677]
[1735203420727,0.00856226,96059.0,96057.0,0.042677]
[1735203421817,0.041676,96058.0,96057.0,0.001]
[1735203422324,0.145676,96058.0,96057.0,0.001]
[1735203423117,0.145676,96058.0,96037.0,0.18646135]
[1735203423431,0.1073,96057.0,96049.0,0.04168]
[1735203423931,0.148977,96057.0,96037.0,0.19734809]
[1735203424120,0.1073,96057.0,96037.0,0.19734809]
[1735203424321,0.1073,96057.0,96055.0,0.041678]
[1735203425827,0.1093,96057.0,96055.0,0.041678]
[1735203426019,0.1133,96057.0,96055.0,0.041678]
[1735203427732,0.006,96057.0,96055.0,0.041678]
[1735203428115,0.006,96057.0,96046.0,0.0108099]
[1735203428321,0.006,96057.0,96044.0,0.041682]
[1735203428721,0.004,96057.0,96044.0,0.041682]
[1735203429029,0.041677,96056.0,96044.0,0.041682]
[1735203429533,0.041678,96054.0,96044.0,0.041682]
[1735203429830,0.041678,96054.0,96045.0,0.18646135]
[1735203430431,0.00156226,96059.0,96045.0,0.18646135]
[1735203430734,0.041681,96047.0,96045.0,0.18646135]
[1735203430934,0.041684,96040.0,96039.0,0.24775434]
[1735203432019,0.041687,96033.0,96032.0,0.31107508]
[1735203432217,0.041691,96025.0,96002.0,0.10881967]
[1735203432523,0.041691,96025.0,96024.0,0.3732901]
[1735203433026,0.041698,96009.0,96008.0,0.00064]
[1735203433234,0.0417,96004.0,96001.0,0.00212226]
[1735203433423,0.041701,96002.0,96001.0,0.00156226]
[1735203435123,0.041701,96002.0,96001.0,0.00556226]
[1735203435823,0.042701,96002.0,96001.0,0.00556226]
[1735203436431,0.042701,96002.0,95977.0,0.2973]
[1735203436432,0.041707,95989.0,95979.0,0.041711]
[1735203437120,0.10418081,95990.0,95979.0,0.041711]
[1735203437320,0.041709,95983.0,95979.0,0.041711]
[1735203437530,0.04171,95982.0,95977.0,0.30807543]
[1735203437835,0.04171,95980.0,95977.0,0.10667543]
[1735203438135,0.041711,95979.0,95977.0,0.10667543]
[1735203438325,0.041711,95979.0,95977.0,0.0959]
[1735203438636,0.041713,95974.0,95965.0,0.041717]
[1735203439029,0.041713,95974.0,95966.0,0.1005]
[1735203439323,0.041717,95965.0,95963.0,0.00156299]
[1735203441235,0.041717,95965.0,95963.0,0.00356299]
[1735203441637,0.042717,95965.0,95963.0,0.00356299]
[1735203443734,0.042717,95965.0,95963.0,0.00156299]
[1735203443935,0.043717,95965.0,95963.0,0.00156299]
[1735203444328,0.042717,95965.0,95963.0,0.00156299]
[1735203445230,0.001,95965.0,95941.0,0.2045]
[1735203445542,0.041724,95948.0,95939.0,0.041728]
[1735203445834,0.10418081,95951.0,95939.0,0.041728]
[1735203446041,0.041725,95947.0,95939.0,0.041728]
[1735203446537,0.041726,95945.0,95939.0,0.041728]
[1735203446736,0.041726,95945.0,95941.0,0.004]
[1735203447327,0.041727,95941.0,95938.0,0.0110474]
[1735203447527,0.10418081,95951.0,95939.0,0.004]
[1735203447731,0.041728,95940.0,95939.0,0.004]
[1735203448132,0.041731,95932.0,95931.0,0.1029]
[1735203449727,0.001,95940.0,95939.0,0.004]
[1735203450243,0.042728,95940.0,95939.0,0.004]
[1735203450541,0.001,95932.0,95930.0,0.041732]
[1735203450742,0.001,95932.0,95931.0,0.005]
[1735203450743,0.002,95932.0,95931.0,0.005]
[1735203451044,0.001,95932.0,95931.0,0.005]
[1735203451433,0.041731,95933.0,95927.0,0.145033]
[1735203451846,0.001,95932.0,95927.0,0.145033]
[1735203452144,0.041731,95933.0,95928.0,0.041733]
[1735203452336,0.001,95932.0,95928.0,0.041733]
[1735203452846,0.041722,95953.0,95946.0,0.041725]
[1735203453032,0.041724,95949.0,95946.0,0.041725]
[1735203453236,0.041726,95944.0,95936.0,0.041729]
[1735203453436,0.041727,95943.0,95934.0,0.04173]
[1735203453641,0.001,95933.0,95931.0,0.005]
[1735203453849,0.041725,95947.0,95936.0,0.041729]
[1735203454034,0.04173,95935.0,95931.0,0.005]
[1735203454234,0.04173,95935.0,95927.0,0.145033]
[1735203454635,0.001,95944.0,95927.0,0.145033]
[1735203454830,0.001,95933.0,95927.0,0.1033]
[1735203455132,0.001,95933.0,95928.0,0.041733]
[1735203455944,0.001,95933.0,95931.0,0.005]
[1735203456531,0.041731,95934.0,95931.0,0.005]
[1735203456739,0.001,95933.0,95928.0,0.047733]
[1735203457246,0.002,95933.0,95931.0,0.003]
[1735203457539,0.002,95933.0,95931.0,0.008]
[1735203457845,0.001,95933.0,95931.0,0.008]
[1735203458244,0.001,95933.0,95931.0,0.005]
[1735203458436,0.002,95933.0,95931.0,0.008]
[1735203459042,0.002,95933.0,95931.0,0.003]
[1735203459848,0.002,95933.0,95931.0,0.008]
[1735203460243,0.002,95933.0,95931.0,0.049731]
[1735203462133,0.043731,95933.0,95931.0,0.008]
[1735203464245,0.1053,95932.0,95931.0,0.008]
[1735203465636,0.043731,95933.0,95931.0,0.003]
[1735203465840,0.001,95932.0,95931.0,0.008]
[1735203466347,0.001,95932.0,95931.0,0.005]
[1735203466543,0.002,95932.0,95931.0,0.007]
[1735203466853,0.001,95932.0,95931.0,0.007]
[1735203468447,0.0999,95932.0,95931.0,0.007]
[1735203468648,0.1009,95932.0,95931.0,0.007]
[1735203469445,0.22230477,95932.0,95931.0,0.007]
[1735203470451,0.1009,95932.0,95931.0,0.007]
[1735203472544,0.0999,95932.0,95931.0,0.005]
[1735203474455,0.0989,95932.0,95931.0,0.004]
[1735203474964,0.0989,95932.0,95931.0,0.001]
[1735203475847,0.14962831,95932.0,95931.0,0.001]
[1735203479154,0.041736,95922.0,95921.0,0.00156347]
[1735203480258,0.041741,95911.0,95905.0,0.041743]
[1735203480555,0.20878081,95931.0,95901.0,0.21206753]
[1735203480556,0.10418081,95920.0,95901.0,0.2014]
[1735203480752,0.041744,95904.0,95901.0,0.099]
[1735203481155,0.001,95922.0,95920.0,0.041736]
[1735203481356,0.001,95922.0,95901.0,0.099]
[1735203481661,0.10418081,95920.0,95908.0,0.041741]
[1735203481855,0.04174,95913.0,95908.0,0.041741]
[1735203482247,0.041742,95907.0,95904.0,0.041743]
[1735203483566,0.042742,95907.0,95904.0,0.041743]
[1735203484563,0.16526396,95907.0,95904.0,0.041743]
[1735203484959,0.16526396,95907.0,95901.0,0.099]